[Event "44th Chess Olympiad Open 2022"]
[Site "Chennai"]
[Date "2022.08.03"]
[Round "6.50"]
[White "Arias, Lemnys A."]
[Black "Frick, Renato"]
[Result "1-0"]
[WhiteElo "2258"]
[BlackElo "1900"]
[Annotator "TA"]
[PlyCount "119"]
[EventDate "2022.??.??"]
[TimeControl "60"]

{[%evp 9,119,11,25,8,16,17,22,2,20,28,27,27,23,33,56,45,51,50,68,47,68,47,39,7,
77,73,77,32,31,39,50,37,62,62,59,62,67,52,68,12,94,49,57,0,0,0,0,0,45,50,65,40,
52,65,75,46,35,0,47,-22,84,-2,-2,-1,-2,-4,-2,-6,455,455,455,455,455,455,434,
377,354,348,433,433,433,433,433,433,378,403,463,463,463,463,463,459,463,266,
266,256,462,396,455,389,455,377,455,437,393,364,640,616,963,897,727,0]} 1. d4 {
[%emt 0:00:36]} Nf6 {[%emt 0:00:08]} 2. c4 {[%emt 0:00:32]} e6 {[%emt 0:00:19]}
3. Nf3 {[%emt 0:00:24]} Bb4+ {[%emt 0:00:10]} 4. Bd2 {[%emt 0:01:08]} a5 {
[%emt 0:00:10]} 5. Qc2 {[%emt 0:00:30]} O-O {[%emt 0:00:28]} 6. g3 {[%emt 0:00:
00] E11: Bogo-Indian.} b6 {[%emt 0:08:05]} 7. Bg2 {[%emt 0:00:20]} Bb7 {
[%emt 0:00:08]} 8. Nc3 {[%emt 0:00:04] [#] The position is equal.} c5 $146 {
[%emt 0:09:12]} ({Predecessor:} 8... d6 9. O-O Nbd7 10. Bg5 Bxc3 11. Bxf6 Nxf6
12. Qxc3 Qe7 13. Rac1 Be4 14. Rfd1 a4 15. Ne1 Bxg2 16. Kxg2 Ra5 17. Qd3 e5 {
0-1 (34) Molina,R (2434)-Iturrizaga Bonelli,E (2613) Chess.com INT 2021}) 9.
dxc5 {[%emt 0:01:12]} Bxc5 {[%emt 0:00:42]} 10. O-O {[%emt 0:00:07]} Nc6 {
[%emt 0:03:26]} 11. Rad1 {[%emt 0:02:44]} (11. Rfd1 {feels hotter.} Nb4 12. Qc1
Ng4 13. Be1) 11... Qe7 {[%emt 0:08:09]} 12. Bg5 {[%emt 0:03:51]} Rfd8 {[%emt 0:
00:00]} 13. Qc1 {[%emt 0:01:00]} Qf8 {[%emt 0:07:21]} 14. Na4 {[%emt 0:03:13]}
(14. Bxf6 {looks sharper.} gxf6 15. Qf4 f5 16. e4) 14... d6 {[%emt 0:08:41]}
15. Nxc5 {[%emt 0:11:49]} (15. Qf4 {is interesting.} Qe7 16. Nc3 h6 17. Bh4)
15... bxc5 {[%emt 0:04:33]} 16. Rfe1 {[%emt 0:02:08]} Ne7 {[%emt 0:05:59]} (
16... Qe7 $11 {remains equal.}) 17. Bxf6 $16 {[%emt 0:04:49]} gxf6 {[%emt 0:00:
00]} 18. Nd2 {[%emt 0:00:37][%cal Yf3d2,Yd2b1,Yb1c3,Yc3b5]} (18. Qf4 {seems
wilder.} Kg7 19. Rxd6 Bxf3 20. Bxf3 Ng6 21. Rxd8 Rxd8 22. Qc7) 18... Bxg2 {
[%emt 0:00:34]} 19. Kxg2 {[%emt 0:00:01]} f5 {[%emt 0:11:12] Inhibits Ne4.} 20.
Nb1 {[%emt 0:00:28]} Qg7 {[%emt 0:02:39]} 21. Nc3 {[%emt 0:00:20]} Ng6 {
[%emt 0:02:39]} 22. Kh1 {[%emt 0:03:04]} Ne5 {[%emt 0:02:40]} 23. Nb5 {[%emt 0:
00:00]} Ra6 {[%emt 0:02:43]} 24. f3 {[%emt 0:01:11]} (24. a4 $14) 24... f6 {
[%emt 0:01:24]} (24... a4 $11) 25. Kg2 {[%emt 0:01:12]} Qe7 {[%emt 0:04:21]}
26. a4 {[%emt 0:00:31]} (26. f4 $14 Ng4 27. h3 Qb7+ 28. Kg1 (28. e4 Nh6 $14))
26... d5 $1 $11 {[%emt 0:03:35]} 27. cxd5 {[%emt 0:03:07]} exd5 {[%emt 0:00:07]
} 28. b3 {[%emt 0:03:38]} Nc6 {[%emt 0:02:47]} 29. Qc2 {[%emt 0:00:27]} Nb4 $1
{[%emt 0:01:39]} 30. Qxf5 {[%emt 0:00:21]} Re6 {[%emt 0:00:09]} 31. e4 {
[%emt 0:08:17]} Re5 {[%emt 0:00:10]} 32. Qg4+ {[%emt 0:00:04]} Kh8 {[%emt 0:00:
00][%cal Yf6f5]} 33. Re2 {[%emt 0:01:24]} d4 {[%emt 0:00:41]} (33... f5 $1 $11
{should be considered.} 34. Qh4 Qxh4 35. gxh4 Rg8+ 36. Kh1 fxe4 37. fxe4 Rd8)
34. Qf4 {[%emt 0:00:34]} (34. Qh4 $1 $14) 34... d3 {[%emt 0:00:30]} (34... f5
$11 {keeps the balance.}) 35. Red2 {[%emt 0:00:11]} ({White should play} 35.
Rf2 $16) 35... f5 $1 {[%emt 0:00:44][%cal Rf5e4]} 36. Nc3 $132 {[%emt 0:00:15]
White has counterplay} ({Wrong is} 36. exf5 $2 Nd5 37. Qh4 Ne3+ 38. Kf2 Nxd1+
39. Rxd1 Re2+ 40. Kf1 Qxh4 41. gxh4 Rxh2 $19) 36... fxe4 {[%emt 0:00:00]} 37.
fxe4 {[%emt 0:01:03]} ({Reject} 37. Nxe4 Nd5 38. Qh6 Re6 $17) 37... Rf8 {
[%emt 0:00:56]} 38. Qe3 {[%emt 0:00:32]} Nd5 $2 {[%emt 0:00:55] [#] Loses the
game.} 39. Nxd5 $18 {[%emt 0:00:09]} Rxd5 {[%emt 0:00:07]} 40. Rxd3 {[%emt 0:
00:14]} Re5 {[%emt 0:00:14]} 41. Rd7 {[%emt 0:30:49]} Qf6 {[%emt 0:03:18]} 42.
R7d2 {[%emt 0:00:00]} Rfe8 {[%emt 0:03:47]} 43. Qf3 {[%emt 0:00:00]} Qxf3+ {
[%emt 0:03:36]} 44. Kxf3 {[%emt 0:00:00]} Rxe4 {[%emt 0:00:00] Endgame KRR-KRR}
45. Rd8 {[%emt 0:00:00]} Re3+ {[%emt 0:00:00]} 46. Kf2 {[%emt 0:00:00]} Re2+ {
[%emt 0:00:14]} 47. Kf1 {[%emt 0:00:00]} Re1+ {[%emt 0:04:27]} 48. Rxe1 {
[%emt 0:00:00]} Rxd8 {[%emt 0:00:06] KR-KR} 49. Re5 {[%emt 0:00:00]} Rc8 {
[%emt 0:00:08]} 50. h4 {[%emt 0:00:00]} Kg7 {[%emt 0:00:00]} 51. Kf2 {[%emt 0:
00:00]} (51. Ke2 $142 Kf6 52. Rh5) 51... Kf6 {[%emt 0:00:00]} 52. Rh5 {[%emt 0:
00:00]} Rc7 $2 {[%emt 0:00:35] [#]} (52... Kg6 53. Rd5 Kf6 54. Rd6+ Kf5) 53.
Kf3 {[%emt 0:00:00]} Kg6 {[%emt 0:04:03]} 54. Rg5+ {[%emt 0:00:00]} Kf6 {
[%emt 0:00:09]} 55. Ke3 {[%emt 0:00:00]} h6 {[%emt 0:00:00]} 56. Rh5 {[%emt 0:
00:00]} Kg6 {[%emt 0:01:33]} 57. Rd5 {[%emt 0:00:00]} h5 $2 {[%emt 0:00:58]} (
57... Rb7 58. Rxc5 Rxb3+ 59. Kf2 Ra3 60. Rxa5 Kf6) 58. Rg5+ {[%emt 0:00:00]
White is clearly winning.} Kh6 {[%emt 0:00:04]} 59. Kd3 {[%emt 0:00:00]} Rb7 {
[%emt 0:01:39]} 60. Ke4 $2 {[%emt 0:00:00] Weighted Error Value: White=0.21 
(precise) /Black=0.40. Sensor Board Error (Ke4/e5)?} (60. Kc4 $18 Rb4+ 61. Kc3)
1-0

[Event "44th Chess Olympiad Open 2022"]
[Site "Chennai"]
[Date "2022.08.03"]
[Round "6.50"]
[White "Mannhart, Marcel"]
[Black "Giron, Jorge Ernesto"]
[Result "1/2-1/2"]
[WhiteElo "2110"]
[BlackElo "2288"]
[Annotator "TA"]
[PlyCount "248"]
[EventDate "2022.??.??"]
[TimeControl "60"]

{[%evp 9,248,6,9,-26,30,-6,25,25,33,18,40,-9,0,-8,-7,-2,-8,-1,-3,-8,-13,-58,-6,
-96,-28,-204,-214,-170,-76,-74,-50,-39,-17,-6,0,-27,-41,-72,-84,-141,-132,-141,
-126,-136,-70,-67,-27,-116,-131,-175,-118,-129,-52,-40,-47,-47,-47,-76,-72,-54,
-70,-35,-32,-77,-57,-71,0,0,0,0,39,0,0,0,0,0,4,0,195,188,309,322,300,206,225,0,
152,50,59,72,72,67,347,352,360,347,498,533,526,439,365,370,302,324,327,251,131,
0,0,0,0,0,0,0,0,0,0,0,0,0,0,0,0,0,0,0,0,0,0,0,0,0,0,0,0,0,0,0,0,0,0,0,0,0,0,0,
0,0,0,0,0,0,0,0,0,0,0,0,0,0,0,0,0,0,0,0,0,0,0,0,0,0,0,0,0,0,0,0,0,0,0,0,0,0,0,
0,0,0,0,0,0,0,0,0,0,0,0,0,0,0,0,0,0,0,0,0,0,0,0,0,0,0,0,0,0,0,0,0,0,0,0,0,0,0,
0,0,0,0,0,0,0,0,0,0,0,0,0,0,0,0,0]} 1. Nc3 {[%emt 0:00:03]} c5 {[%emt 0:00:11]}
2. e4 {[%emt 0:00:07]} e6 {[%emt 0:00:06]} 3. Nf3 {[%emt 0:00:55]} a6 {[%emt 0:
00:00]} 4. Be2 {[%emt 0:03:32]} b5 {[%emt 0:01:14]} 5. O-O {[%emt 0:00:37]} Bb7
{[%emt 0:00:11]} 6. d3 {[%emt 0:00:10] B40: Sicilian: 2...e6, Unusual lines.}
Be7 {[%emt 0:05:51] [#]} (6... Qc7 $142) 7. h3 $146 {[%emt 0:05:41]} ({
Predecessor:} 7. Re1 d6 8. Bf1 Nf6 9. Ne2 Nbd7 10. Ng3 Nf8 11. c3 Ng6 12. d4
Rc8 13. a4 {½-½ (41) Dobrotka,M (2195)-Meszaros,N (2149) Slovakia 2018}) 7...
d5 {[%emt 0:03:10]} 8. exd5 {[%emt 0:01:12] White has an edge.} exd5 {[%emt 0:
00:00]} 9. d4 {[%emt 0:00:13]} c4 {[%emt 0:00:08]} 10. Bf4 {[%emt 0:00:58]} (
10. Re1 $14) 10... Nf6 $11 {[%emt 0:00:08]} 11. a3 {[%emt 0:08:03]} O-O {
[%emt 0:01:09]} 12. Ne5 {[%emt 0:05:58]} Nbd7 {[%emt 0:01:08]} 13. Bf3 {
[%emt 0:00:58]} Ne4 {[%emt 0:00:16]} 14. Bxe4 {[%emt 0:04:51]} dxe4 {[%emt 0:
00:00]} 15. Qd2 {[%emt 0:06:07]} (15. d5 $5 {[%cal Re5c6]}) 15... Nf6 {[%emt 0:
00:00]} (15... Nb6 $15) 16. Qe3 {[%emt 0:07:12]} (16. Rad1 $11 {keeps the
balance.}) 16... Nd5 {[%emt 0:02:27]} (16... Nh5 $17 17. Bh2 Bg5) 17. Qd2 $2 {
[%emt 0:07:13]} (17. Qxe4 $11 f6 18. Nf3) 17... Nxf4 $19 {[%emt 0:05:12]} 18.
Qxf4 {[%emt 0:00:23]} Bg5 {[%emt 0:00:40]} (18... Qxd4 19. Rad1 Qa7 20. Nxe4
$11) (18... f6 $19 {and Black stays clearly on top.} 19. Ng4 Bd6) 19. Qf5 $17 {
[%emt 0:03:51]} g6 {[%emt 0:05:02]} (19... e3 $5 {[%cal Rg7g6]}) 20. Qd7 {
[%emt 0:01:23]} Rb8 {[%emt 0:00:08]} 21. Rad1 {[%emt 0:02:18]} Bf4 {[%emt 0:00:
00]} 22. Qxd8 {[%emt 0:06:22]} Rbxd8 {[%emt 0:00:16]} 23. Ng4 {[%emt 0:00:13]}
f5 {[%emt 0:00:44]} 24. Nh2 {[%emt 0:11:28]} (24. Ne5 $142) 24... Rfe8 {
[%emt 0:03:02]} 25. Rfe1 {[%emt 0:00:29]} Kf7 {[%emt 0:01:07]} 26. g3 {[%emt 0:
00:00]} Bh6 {[%emt 0:00:14]} (26... Bc7 $17 27. Nf1 g5) 27. Nf1 $1 $15 {
[%emt 0:00:22]} Rd7 {[%emt 0:08:39]} 28. Ne2 {[%emt 0:00:24]} (28. Ne3 $11 {
remains equal.}) 28... e3 $1 $17 {[%emt 0:01:30]} 29. f4 {[%emt 0:03:58]} Bg7 {
[%emt 0:00:30]} (29... g5 $1 $19 {[%cal Rg5f4] White must now prevent ...gxf4.}
30. fxg5 Bxg5) 30. c3 {[%emt 0:00:29]} Bf3 {[%emt 0:00:16]} (30... a5 $17 31.
Nh2 Bd5) 31. Nh2 $15 {[%emt 0:00:10]} Be4 {[%emt 0:00:10]} 32. Rf1 $1 {[%emt 0:
00:00]} Bd3 {[%emt 0:03:00] A strong pair of Bishops.} 33. Rde1 {[%emt 0:00:10]
} a5 {[%emt 0:00:04][%cal Yb5b4]} 34. Nf3 {[%emt 0:00:23]} b4 $1 {[%emt 0:00:
00]} 35. Ne5+ {[%emt 0:01:15]} Bxe5 {[%emt 0:00:06]} 36. fxe5 {[%emt 0:00:16]}
bxa3 {[%emt 0:00:21]} 37. bxa3 {[%emt 0:00:11]} Rb8 {[%emt 0:06:28]} (37... Rb7
$17 {...Rb2 is the strong threat.} 38. Rf3 Rb3 39. Rxe3 Rxa3) 38. Rf3 $11 {
[%emt 0:01:59]} Bxe2 {[%emt 0:00:06]} 39. Rxe2 {[%emt 0:00:20] Endgame KRR-KRR}
Ke6 {[%emt 0:00:16]} 40. Rfxe3 {[%emt 0:00:37]} a4 {[%emt 0:00:00]} 41. Kf2 {
[%emt 0:31:49]} Rb3 {[%emt 0:30:07]} 42. Ra2 {[%emt 0:00:59]} Rd8 {[%emt 0:10:
03]} 43. Kf3 {[%emt 0:01:38]} Rd5 $2 {[%emt 0:02:13]} (43... g5 $11 {and Black
has nothing to worry.}) 44. g4 $1 $18 {[%emt 0:05:40]} Rdb5 {[%emt 0:00:11]} (
44... Rb1 {was called for.} 45. Kf4 Rf1+ 46. Kg5 (46. Rf3 g5+ 47. Kg3 f4+ 48.
Kg2 Rc1 $11) 46... f4) 45. gxf5+ {[%emt 0:01:16]} gxf5 {[%emt 0:00:04]} 46. Rd2
{[%emt 0:02:14][%cal Yd4d5]} Rd5 {[%emt 0:03:01]} 47. Ra2 {[%emt 0:00:11]} (47.
Rg2 $1 $18 {[%cal Rg2g8]}) 47... Rb1 $2 {[%emt 0:00:00] [#]} (47... Rdb5 $1 $11
) 48. Kf4 {[%emt 0:00:00]} (48. Rae2 $1 $16) 48... Rdb5 $1 $14 {[%emt 0:00:00]}
49. Rd2 {[%emt 0:00:00][%cal Yd4d5]} Rf1+ {[%emt 0:00:00]} 50. Rf3 {[%emt 0:00:
00]} Ra1 {[%emt 0:00:00]} (50... Re1 $14) 51. Rg2 $18 {[%emt 0:00:00]} Rxa3 {
[%emt 0:00:00]} 52. Rg7 {[%emt 0:00:00]} Rbb3 {[%emt 0:00:00]} (52... Ra1 $142
53. Ra7 (53. Rxh7 Ra5 $18) 53... a3 54. Ra6+ Kd7 55. Kxf5 Kc7) 53. Rxh7 {
[%emt 0:00:00] Rg3 would kill now.} Rxc3 {[%emt 0:00:00]} 54. Rh6+ {[%emt 0:00:
00]} Kd7 {[%emt 0:00:00]} 55. Rxc3 {[%emt 0:00:00]} Rxc3 {[%emt 0:00:00] KR-KR}
56. d5 {[%emt 0:00:00] Strongly threatening Rh7+.} (56. Kxf5 Rd3 $14) 56... Rd3
{[%emt 0:00:00]} 57. Rh7+ {[%emt 0:00:00]} Kd8 {[%emt 0:00:00] [#]} 58. d6 {
[%emt 0:00:00]} (58. Kxf5 $6 Rxd5 59. Ra7 Rd3 $11) (58. Rh8+ $1 $16 Ke7 59. d6+
(59. Kxf5 Rxd5 60. Rh7+ Kd8 $11) 59... Ke6 60. Rh6+ Kd7 61. Rh7+ (61. Kxf5 a3
$14) 61... Kc6 62. Ra7 (62. Kxf5 a3 $16)) 58... c3 $11 {[%emt 0:00:00] The
position is equal.} 59. Kxf5 {[%emt 0:00:00]} (59. Rc7 $2 a3 60. e6 Rxd6 61.
Rxc3 Ra6 $19) 59... a3 $1 {[%emt 0:00:00] And now ...a2 would win.} 60. Ke6 {
[%emt 0:00:00][%cal Rh7h8]} Kc8 {[%emt 0:00:00] aiming for ...a2.} 61. Ra7 {
[%emt 0:00:00] Threatens to win with Ke7.} Kb8 $1 {[%emt 0:00:21]} 62. Rxa3 {
[%emt 0:00:00]} c2 {[%emt 0:00:00]} 63. Rxd3 {[%emt 0:00:00]} c1=Q {[%emt 0:00:
06] Inhibits Rc3. KQ-KR} 64. d7 {[%emt 0:00:00]} Qh6+ {[%emt 0:00:08]} 65. Kd5
{[%emt 0:00:00]} (65. Kf7 Qh7+ 66. Ke8 Qh5+ 67. Kf8 Qf5+ 68. Kg7 Qxe5+ 69. Kh6
Qf6+ 70. Kh5 Qf5+ 71. Kh4 Qxd3 72. Kg4 Qxd7+ 73. Kg3 Kc7 74. h4 Kd6 75. Kf4
Qa4+ 76. Kg3 Ke5 77. h5 Ke4 78. h6 Qb3+ 79. Kg2 Qf3+ 80. Kg1 Qg3+ 81. Kf1 Ke3
82. h7 Qf2#) 65... Kc7 {[%emt 0:00:55]} 66. e6 {[%emt 0:00:00]} Qg5+ {[%emt 0:
00:13]} 67. Kc4 {[%emt 0:00:00]} Kd8 {[%emt 0:01:38]} 68. Kc3 {[%emt 0:00:29]}
Qe5+ {[%emt 0:00:07]} 69. Kc2 {[%emt 0:00:15]} Qxe6 {[%emt 0:00:04]} 70. Kc3 {
[%emt 0:00:09]} Qe2 {[%emt 0:00:10]} 71. Rd2 {[%emt 0:00:52]} Qe5+ {[%emt 0:01:
18]} 72. Kc2 {[%emt 0:00:24]} Qc5+ {[%emt 0:00:09]} 73. Kb2 {[%emt 0:01:12]}
Qe3 {[%emt 0:00:00]} 74. Kc2 {[%emt 0:00:11]} Qxh3 {[%emt 0:00:03]} 75. Rd3 {
[%emt 0:00:09]} Qf1 {[%emt 0:00:42]} 76. Rd2 {[%emt 0:00:22]} Qa1 {[%emt 0:00:
42]} (76... Qf4 $2 77. Kc3 $19) 77. Rd3 {[%emt 0:00:23]} Qa2+ {[%emt 0:00:06]}
78. Kc3 {[%emt 0:00:06]} Qb1 {[%emt 0:00:04]} 79. Kd2 {[%emt 0:00:44]} Qb2+ {
[%emt 0:00:00]} 80. Ke1 {[%emt 0:00:44]} Qc1+ {[%emt 0:03:34]} 81. Ke2 {
[%emt 0:00:18]} Qf4 {[%emt 0:00:07]} 82. Ke1 {[%emt 0:01:16]} Qh2 {[%emt 0:00:
16]} 83. Kd1 {[%emt 0:00:08]} Qf2 {[%emt 0:00:04]} 84. Kc1 {[%emt 0:00:53]} Qe2
{[%emt 0:00:00]} 85. Rd2 {[%emt 0:00:12]} Qe4 {[%emt 0:01:39]} 86. Kb2 {
[%emt 0:00:24]} Qc4 {[%emt 0:00:07]} 87. Rd1 {[%emt 0:06:20]} Qb4+ {[%emt 0:02:
01]} 88. Kc2 {[%emt 0:00:16]} Qa4+ {[%emt 0:00:05]} 89. Kc1 {[%emt 0:00:07]}
Qc6+ {[%emt 0:00:00]} (89... Qb3 $2 90. Rd2 $19) 90. Kb2 {[%emt 0:00:15]} Qb5+
{[%emt 0:00:00]} 91. Kc3 {[%emt 0:00:28]} Qa4 {[%emt 0:02:15]} 92. Rd3 {
[%emt 0:00:34]} Qa2 {[%emt 0:00:42]} 93. Rd1 {[%emt 0:03:16]} Qa3+ {[%emt 0:00:
26]} 94. Kc2 $1 {[%emt 0:00:07]} Qa4+ {[%emt 0:00:03]} 95. Kc1 {[%emt 0:00:10]}
Qa2 {[%emt 0:00:00]} ({Avoid the trap} 95... Qb3 $2 96. Rd2 $19) 96. Rd3 {
[%emt 0:00:31]} Qc4+ {[%emt 0:02:17]} 97. Kd2 {[%emt 0:00:08]} Qc5 {[%emt 0:00:
33]} 98. Ke2 {[%emt 0:00:31]} Qc1 {[%emt 0:00:15]} 99. Kf2 {[%emt 0:00:37]}
Qc2+ {[%emt 0:00:00]} 100. Ke3 {[%emt 0:00:07]} Qg2 {[%emt 0:00:08]} (100...
Qc4 $2 101. Kd2 $19) 101. Rd2 {[%emt 0:00:27]} Qf1 {[%emt 0:00:37] Hoping for .
..Qe1+.} 102. Rd3 {[%emt 0:01:01]} Qe1+ {[%emt 0:00:08]} 103. Kf3 $1 {[%emt 0:
00:10]} Qe7 {[%emt 0:01:22]} 104. Kf2 {[%emt 0:00:11]} Qe5 {[%emt 0:00:07]}
105. Rd2 {[%emt 0:00:29]} Qe4 {[%emt 0:00:24]} 106. Rd1 {[%emt 0:01:11]} Qf4+ {
[%emt 0:00:00]} 107. Ke2 {[%emt 0:00:11]} Qh2+ {[%emt 0:00:14]} 108. Ke3 {
[%emt 0:00:00]} Qg3+ {[%emt 0:00:16]} 109. Ke2 {[%emt 0:00:06]} Qg4+ {[%emt 0:
00:02]} 110. Ke1 {[%emt 0:00:10]} Qg2 {[%emt 0:00:17]} ({Don't blunder} 110...
Qf3 $2 111. Rd2 $19) 111. Rd3 {[%emt 0:00:53]} Qg1+ {[%emt 0:01:07]} 112. Ke2 {
[%emt 0:00:00]} Qc1 {[%emt 0:00:12]} 113. Rd2 {[%emt 0:00:11]} Qc6 {[%emt 0:00:
37]} 114. Rd3 {[%emt 0:00:19]} Qg2+ {[%emt 0:00:28]} 115. Ke1 {[%emt 0:00:17]}
Qc2 {[%emt 0:01:09]} 116. Rd2 {[%emt 0:00:09]} Qf5 {[%emt 0:01:01]} ({Not} 
116... Qc4 $2 117. Kd1 $19) 117. Ke2 {[%emt 0:00:13]} Qh3 {[%emt 0:00:57]} 118.
Kf2 {[%emt 0:01:14]} Qe6 {[%emt 0:00:36]} 119. Rd3 {[%emt 0:00:24]} Qe5 {
[%emt 0:00:00]} 120. Rd2 {[%emt 0:01:02]} Qe4 {[%emt 0:00:10]} 121. Rd1 {
[%emt 0:00:16]} Qh4+ {[%emt 0:00:25]} 122. Ke2 {[%emt 0:00:29]} Qg4+ {[%emt 0:
00:04]} 123. Ke1 {[%emt 0:00:07]} Qf3 {[%emt 0:00:03]} 124. Rd2 $1 {[%emt 0:00:
14]} Qh5 {[%emt 0:00:46] What a fight! Weighted Error Value: White=0.29 
(precise) / Black=0.39} 1/2-1/2

[Event "44th Chess Olympiad Open 2022"]
[Site "Chennai"]
[Date "2022.08.03"]
[Round "6.50"]
[White "Jelic, Dejan"]
[Black "Burgos Figueroa, Carlos E."]
[Result "0-1"]
[WhiteElo "1905"]
[BlackElo "2164"]
[Annotator "NA RC"]
[PlyCount "60"]
[EventDate "2022.??.??"]
[TimeControl "60"]

1. d4 {[%emt 0:00:03]} c5 {[%emt 0:00:18]} 2. Nf3 {[%emt 0:01:26]} cxd4 {
[%emt 0:00:07]} 3. Nxd4 {[%emt 0:00:05]} Nc6 {[%emt 0:00:05]} 4. Nb3 {[%emt 0:
00:00]} d5 {[%emt 0:02:20]} 5. Nc3 {[%emt 0:00:49]} Nf6 {[%emt 0:00:13]} 6. Bf4
{[%emt 0:01:24]} e5 {[%emt 0:00:44]} 7. Bg5 {[%emt 0:00:26]} d4 {[%emt 0:00:06]
} 8. Bxf6 {[%emt 0:04:04]} gxf6 {[%emt 0:00:06]} 9. Nb1 {[%emt 0:03:20]} a5 {
[%emt 0:03:26]} 10. a4 {[%emt 0:05:21]} Be6 {[%emt 0:00:06]} 11. e3 {[%emt 0:
00:00]} Bb4+ {[%emt 0:02:38]} 12. c3 {[%emt 0:12:08]} dxc3 {[%emt 0:01:08]} 13.
Qxd8+ {[%emt 0:00:28]} Rxd8 {[%emt 0:00:07]} 14. bxc3 {[%emt 0:00:35]} Bxb3 {
[%emt 0:00:54]} 15. cxb4 {[%emt 0:00:14]} Rd1+ {[%emt 0:00:22]} 16. Ke2 {
[%emt 0:00:25]} Nxb4 {[%emt 0:00:05]} 17. Kf3 {[%emt 0:03:56]} Ke7 {[%emt 0:00:
00]} 18. Nd2 {[%emt 0:05:51]} Rxd2 {[%emt 0:00:20]} 19. Bb5 {[%emt 0:00:30]}
e4+ {[%emt 0:02:16]} 20. Kg3 {[%emt 0:02:16]} Rg8+ {[%emt 0:00:07]} 21. Kh4 {
[%emt 0:00:32]} Rxg2 {[%emt 0:00:19]} 22. Rac1 {[%emt 0:00:42]} Rdxf2 {[%emt 0:
00:00]} 23. Rc7+ {[%emt 0:00:38]} Kf8 {[%emt 0:00:07]} 24. Rc8+ {[%emt 0:00:29]
} Kg7 {[%emt 0:00:02]} 25. h3 {[%emt 0:00:38]} Nd5 {[%emt 0:00:23]} 26. Bf1 {
[%emt 0:01:34]} Ne7 {[%emt 0:02:08]} 27. Bxg2 {[%emt 0:00:31]} Rxg2 {[%emt 0:
00:00]} 28. Rc5 {[%emt 0:01:09]} Bd5 {[%emt 0:00:32]} 29. Rf1 {[%emt 0:00:29]}
Ng6+ {[%emt 0:00:06]} 30. Kh5 {[%emt 0:00:13]} Rg5# {[%emt 0:00:37]} 0-1

[Event "44th Chess Olympiad Open 2022"]
[Site "Chennai"]
[Date "2022.08.03"]
[Round "6.51"]
[White "Mc Intosh, Isaiah"]
[Black "Hsu, Hsuan-Ming"]
[Result "1/2-1/2"]
[WhiteElo "2215"]
[BlackElo "1900"]
[Annotator "TA"]
[PlyCount "64"]
[EventDate "2022.??.??"]
[TimeControl "60"]

{[%evp 13,64,47,57,45,67,67,57,60,66,52,66,58,83,66,88,80,95,94,105,121,105,70,
78,78,78,78,78,78,78,79,83,56,56,36,36,36,49,30,52,0,0,0,0,0,14,13,57,0,8,0,0,
0,22]} 1. d4 {[%emt 0:00:03]} Nf6 {[%emt 0:00:29]} 2. c4 {[%emt 0:00:06]} g6 {
[%emt 0:00:03]} 3. Nc3 {[%emt 0:00:05]} Bg7 {[%emt 0:00:33]} 4. e4 {[%emt 0:00:
00]} d6 {[%emt 0:00:01]} 5. Be2 {[%emt 0:00:08]} O-O {[%emt 0:00:39]} 6. Be3 {
[%emt 0:00:07]} e5 {[%emt 0:00:31]} 7. d5 {[%emt 0:00:11]} Na6 {[%emt 0:01:02]}
8. g4 {[%emt 0:01:03][%cal Yg2g4,Yg4g5] E73: King's Indian: Averbakh Variation
without 6...c5.} Nc5 {[%emt 0:01:39]} 9. f3 {[%emt 0:00:19]} a5 {[%emt 0:03:54]
9...h5 deserves study.} 10. h4 {[%emt 0:01:37] White is slightly better.} h5 {
[%emt 0:05:37]} 11. g5 {[%emt 0:00:13]} Ne8 {[%emt 0:00:00]} 12. Qd2 {[%emt 0:
01:31]} Bd7 {[%emt 0:11:44]} 13. Nh3 {[%emt 0:07:42]} Qe7 {[%emt 0:09:51] [#]}
14. Nf2 $146 {[%emt 0:05:27]} ({Predecessor:} 14. O-O-O Na6 15. Kb1 b6 16. Rdg1
Nc5 17. Bd1 c6 18. Bxc5 bxc5 19. Ba4 Bxh3 20. Rxh3 cxd5 21. Nxd5 {1-0 (37)
Vogel,R (2493)-Kugelmann,W (2100) Tegernsee 2017}) 14... Kh7 {[%emt 0:16:39]}
15. O-O-O {[%emt 0:08:56]} f5 {[%emt 0:12:04]} 16. gxf6 {[%emt 0:02:28]} Nxf6 {
[%emt 0:00:51]} 17. Nh3 {[%emt 0:04:09]} Bxh3 {[%emt 0:00:00]} 18. Rxh3 {
[%emt 0:00:05][%cal Yh1h3,Yh3g3,Yg3g5]} Ng8 {[%emt 0:02:40]} 19. Rg1 {[%emt 0:
10:42]} Bh6 {[%emt 0:02:18] [#]} 20. Rhg3 $1 {[%emt 0:01:18]} Rf6 {[%emt 0:01:
46]} 21. Nd1 {[%emt 0:15:09]} Qg7 {[%emt 0:00:00]} 22. Kb1 {[%emt 0:07:46]}
Bxe3 {[%emt 0:03:36]} 23. Nxe3 {[%emt 0:00:07]} Qh6 {[%emt 0:00:15]} 24. Rg5 {
[%emt 0:00:55]} Ne7 {[%emt 0:02:10]} 25. R1g3 {[%emt 0:03:44]} b6 {[%emt 0:02:
40]} 26. Bf1 {[%emt 0:01:55]} ({Better is} 26. Nd1 $14) 26... Raf8 $11 {
[%emt 0:00:14]} 27. Qg2 {[%emt 0:00:06]} R8f7 {[%emt 0:02:27] [#] Hoping for ..
.Qf8.} 28. Be2 {[%emt 0:00:20]} Rf4 {[%emt 0:00:00]} 29. Qh1 {[%emt 0:02:25]}
R4f6 {[%emt 0:03:49]} 30. Kc2 {[%emt 0:03:25]} (30. Nd1 $14 {deserves
consideration.}) 30... Qf8 {[%emt 0:01:08] The position is equal.} 31. Nd1 {
[%emt 0:04:12]} Rf4 {[%emt 0:00:48]} 32. Nf2 {[%emt 0:00:00]} R7f6 {[%emt 0:02:
25] Weighted Error Value: White=0.10 (very precise) / Black=0.07 (flawless)}
1/2-1/2